[Event "Late-Titled-Tuesday-Blitz-April-30-2024"]
[Site "Chess.com"]
[Date "2024.04.30"]
[Round "1"]
[White "baki83"]
[Black "pedroholly22"]
[Result "1-0"]
[WhiteElo "2903"]
[BlackElo "2482"]
[TimeControl "180+1"]
[EndTime "14:08:43 PDT"]
[Termination "baki83 won by resignation"]

1. e4 {[%clk 0:03:00.9]} 1... c5 {[%clk 0:02:59.2]} 2. Nf3 {[%clk 0:03:00.3]}
2... Nc6 {[%clk 0:02:59.4]} 3. c3 {[%clk 0:03:00.5]} 3... Nf6 {[%clk 0:02:50.6]}
4. e5 {[%clk 0:03:00.4]} 4... Nd5 {[%clk 0:02:50.7]} 5. Bc4 {[%clk 0:03:00.7]}
5... e6 {[%clk 0:02:47.5]} 6. O-O {[%clk 0:03:00.2]} 6... d6 {[%clk 0:02:43.5]}
7. exd6 {[%clk 0:02:59.7]} 7... Bxd6 {[%clk 0:02:43.5]} 8. Re1 {[%clk 0:03:00]}
8... O-O {[%clk 0:02:42.8]} 9. d4 {[%clk 0:02:59.9]} 9... cxd4 {[%clk 0:02:43]}
10. Nxd4 {[%clk 0:02:58.7]} 10... Nxd4 {[%clk 0:02:36.6]} 11. Qxd4 {[%clk
0:02:58.3]} 11... Nf6 {[%clk 0:02:24]} 12. Bg5 {[%clk 0:02:49.7]} 12... Be7
{[%clk 0:02:20.7]} 13. Be3 {[%clk 0:02:36.6]} 13... Qxd4 {[%clk 0:02:18.9]} 14.
Bxd4 {[%clk 0:02:36.6]} 14... b6 {[%clk 0:02:17.7]} 15. a4 {[%clk 0:02:36]}
15... Bd7 {[%clk 0:02:07.9]} 16. Nd2 {[%clk 0:02:30.5]} 16... Bc6 {[%clk
0:02:04.2]} 17. Bb5 {[%clk 0:02:28]} 17... Rfc8 {[%clk 0:01:59.1]} 18. Ba6
{[%clk 0:02:23.3]} 18... Rd8 {[%clk 0:01:55.5]} 19. Nc4 {[%clk 0:02:23.6]} 19...
Nd7 {[%clk 0:01:53.7]} 20. Bb5 {[%clk 0:02:19.5]} 20... Rdc8 {[%clk 0:01:48.5]}
21. Ba6 {[%clk 0:02:19.4]} 21... Rd8 {[%clk 0:01:48.8]} 22. Bb5 {[%clk
0:02:09.4]} 22... Rdc8 {[%clk 0:01:48.6]} 23. Ne5 {[%clk 0:02:05.6]} 23... Nxe5
{[%clk 0:01:43.9]} 24. Bxe5 {[%clk 0:02:06.5]} 24... Bxb5 {[%clk 0:01:35.6]} 25.
axb5 {[%clk 0:02:07.4]} 25... Rc5 {[%clk 0:01:33.9]} 26. b4 {[%clk 0:01:56.1]}
26... Rxb5 {[%clk 0:01:31.1]} 27. Ra6 {[%clk 0:01:56.7]} 27... Bf6 {[%clk
0:01:18.9]} 28. Bxf6 {[%clk 0:01:54.6]} 28... gxf6 {[%clk 0:01:19.1]} 29. Rea1
{[%clk 0:01:54.1]} 29... Rc8 {[%clk 0:01:19.6]} 30. R6a3 {[%clk 0:01:51.3]}
30... Rd5 {[%clk 0:01:12.7]} 31. Kf1 {[%clk 0:01:50.5]} 31... Rd3 {[%clk
0:01:10.9]} 32. Rc1 {[%clk 0:01:49.3]} 32... Rc7 {[%clk 0:01:09.4]} 33. Ke2
{[%clk 0:01:47.9]} 33... Rd5 {[%clk 0:01:08.8]} 34. Rc2 {[%clk 0:01:47.7]} 34...
Kg7 {[%clk 0:01:08.5]} 35. Ra6 {[%clk 0:01:47.2]} 35... Re5+ {[%clk 0:01:06.6]}
36. Kf1 {[%clk 0:01:45.4]} 36... Rb5 {[%clk 0:01:00.9]} 37. Ra4 {[%clk
0:01:40.3]} 37... a5 {[%clk 0:00:57.7]} 38. bxa5 {[%clk 0:01:39]} 38... bxa5
{[%clk 0:00:57.7]} 39. g3 {[%clk 0:01:38.1]} 39... f5 {[%clk 0:00:57.4]} 40. Ke2
{[%clk 0:01:38]} 40... Rbc5 {[%clk 0:00:56.7]} 41. c4 {[%clk 0:01:37.8]} 41...
Kf6 {[%clk 0:00:55.9]} 42. Kd3 {[%clk 0:01:38.2]} 42... Re5 {[%clk 0:00:51.2]}
43. Rca2 {[%clk 0:01:34.2]} 43... Rec5 {[%clk 0:00:42.2]} 44. Rb2 {[%clk
0:01:26.2]} 44... Rd7+ {[%clk 0:00:41.3]} 45. Kc3 {[%clk 0:01:25.5]} 45... Rdc7
{[%clk 0:00:38.5]} 46. Kd3 {[%clk 0:01:24.8]} 46... Rd7+ {[%clk 0:00:38.5]} 47.
Kc3 {[%clk 0:01:25.2]} 47... Rdc7 {[%clk 0:00:38.8]} 48. Kd4 {[%clk 0:01:22.9]}
48... e5+ {[%clk 0:00:38.7]} 49. Kd3 {[%clk 0:01:22.2]} 49... Rd7+ {[%clk
0:00:36.4]} 50. Kc3 {[%clk 0:01:22.5]} 50... e4 {[%clk 0:00:35.1]} 51. Rb5
{[%clk 0:01:16.3]} 51... Rdc7 {[%clk 0:00:30.3]} 52. Rxc5 {[%clk 0:01:15.8]}
52... Rxc5 {[%clk 0:00:30.5]} 53. Kd4 {[%clk 0:01:16.6]} 53... Re5 {[%clk
0:00:27.5]} 54. Ra3 {[%clk 0:01:03.2]} 54... Ke6 {[%clk 0:00:24.8]} 55. Rb3
{[%clk 0:00:56.8]} 55... Kd6 {[%clk 0:00:20.3]} 56. Rb6+ {[%clk 0:00:56.6]}
56... Kc7 {[%clk 0:00:20.7]} 57. Ra6 {[%clk 0:00:53.9]} 57... Re6 {[%clk
0:00:13.8]} 58. Rxa5 {[%clk 0:00:53.2]} 58... Rh6 {[%clk 0:00:14.1]} 59. Rxf5
{[%clk 0:00:51.4]} 59... Rxh2 {[%clk 0:00:14]} 60. Rxf7+ {[%clk 0:00:51.4]}
60... Kc6 {[%clk 0:00:14.3]} 61. Rf6+ {[%clk 0:00:51.8]} 61... Kc7 {[%clk
0:00:14.3]} 62. Kxe4 {[%clk 0:00:51.6]} 62... h5 {[%clk 0:00:14.5]} 63. Ke3
{[%clk 0:00:48.7]} 63... h4 {[%clk 0:00:14.7]} 64. gxh4 {[%clk 0:00:47.8]} 64...
Rxh4 {[%clk 0:00:14.1]} 65. f4 {[%clk 0:00:47.7]} 65... Rh1 {[%clk 0:00:13.4]}
66. Kd4 {[%clk 0:00:47.7]} 66... Rd1+ {[%clk 0:00:13.5]} 67. Kc5 {[%clk
0:00:48]} 67... Ra1 {[%clk 0:00:14.1]} 68. Rf7+ {[%clk 0:00:47.9]} 68... Kc8
{[%clk 0:00:13.5]} 69. Kd5 {[%clk 0:00:46.9]} 69... Rd1+ {[%clk 0:00:13.4]} 70.
Kc6 {[%clk 0:00:46.5]} 70... Kd8 {[%clk 0:00:11.7]} 71. c5 {[%clk 0:00:45.2]}
71... Ra1 {[%clk 0:00:09.7]} 72. Rf5 {[%clk 0:00:39.8]} 72... Ra6+ {[%clk
0:00:09.4]} 73. Kb7 {[%clk 0:00:38.9]} 73... Ra1 {[%clk 0:00:08.5]} 74. Rd5+
{[%clk 0:00:38.2]} 74... Ke7 {[%clk 0:00:08.8]} 75. Kc7 {[%clk 0:00:38.5]} 75...
Ra7+ {[%clk 0:00:08.6]} 76. Kb8 {[%clk 0:00:38.3]} 76... Ra1 {[%clk 0:00:08.2]}
77. c6 {[%clk 0:00:38.5]} 77... Rb1+ {[%clk 0:00:08.5]} 78. Kc8 {[%clk
0:00:38.2]} 78... Ke6 {[%clk 0:00:08.2]} 79. Rd2 {[%clk 0:00:38]} 79... Rh1
{[%clk 0:00:07]} 80. c7 {[%clk 0:00:37.9]} 80... Rb1 {[%clk 0:00:06.7]} 81. Kd8
{[%clk 0:00:31.3]} 1-0

[Event "Late-Titled-Tuesday-Blitz-April-30-2024"]
[Site "Chess.com"]
[Date "2024.04.30"]
[Round "1"]
[White "WPWPWP-2015"]
[Black "Byniolus"]
[Result "1/2-1/2"]
[WhiteElo "2473"]
[BlackElo "2829"]
[TimeControl "180+1"]
[EndTime "14:08:46 PDT"]
[Termination "Game drawn - insufficient material"]

1. e4 {[%clk 0:03:00.6]} 1... d5 {[%clk 0:02:59.5]} 2. exd5 {[%clk 0:02:59.6]}
2... Nf6 {[%clk 0:03:00.1]} 3. Nf3 {[%clk 0:02:55]} 3... Nxd5 {[%clk 0:03:00.2]}
4. g3 {[%clk 0:02:53.9]} 4... Bf5 {[%clk 0:02:58.8]} 5. Bg2 {[%clk 0:02:52.7]}
5... e6 {[%clk 0:02:59.2]} 6. O-O {[%clk 0:02:52.2]} 6... c6 {[%clk 0:02:58.4]}
7. Re1 {[%clk 0:02:52.5]} 7... Be7 {[%clk 0:02:58.5]} 8. d3 {[%clk 0:02:45.2]}
8... h6 {[%clk 0:02:58.1]} 9. Nbd2 {[%clk 0:02:43.9]} 9... O-O {[%clk
0:02:57.9]} 10. a3 {[%clk 0:02:43.9]} 10... Nd7 {[%clk 0:02:57.7]} 11. Ne4
{[%clk 0:02:41.9]} 11... Re8 {[%clk 0:02:55.6]} 12. h3 {[%clk 0:02:41.6]} 12...
a5 {[%clk 0:02:51.6]} 13. Kh2 {[%clk 0:02:40.9]} 13... a4 {[%clk 0:02:47.9]} 14.
Bd2 {[%clk 0:02:39.5]} 14... Qb6 {[%clk 0:02:47.4]} 15. Rb1 {[%clk 0:02:35.8]}
15... Red8 {[%clk 0:02:45.9]} 16. Qe2 {[%clk 0:02:32.8]} 16... Qa6 {[%clk
0:02:25.6]} 17. c4 {[%clk 0:02:18.1]} 17... N5f6 {[%clk 0:02:18.3]} 18. Bc3
{[%clk 0:02:18.1]} 18... Bh7 {[%clk 0:02:09.6]} 19. Rbd1 {[%clk 0:02:14.7]}
19... Nxe4 {[%clk 0:01:52.8]} 20. dxe4 {[%clk 0:02:14]} 20... Nb6 {[%clk
0:01:52.9]} 21. Nd2 {[%clk 0:01:48.3]} 21... Rd7 {[%clk 0:01:34.3]} 22. Bf1
{[%clk 0:01:41.1]} 22... Qa7 {[%clk 0:01:26.6]} 23. h4 {[%clk 0:01:36.4]} 23...
Rad8 {[%clk 0:01:22.4]} 24. Qg4 {[%clk 0:01:35.2]} 24... Bf8 {[%clk 0:01:20.1]}
25. c5 {[%clk 0:01:17.4]} 25... Nc8 {[%clk 0:01:16.9]} 26. Nc4 {[%clk
0:01:17.1]} 26... Qxc5 {[%clk 0:01:07.8]} 27. Kg1 {[%clk 0:01:11.1]} 27... Rxd1
{[%clk 0:00:35]} 28. Rxd1 {[%clk 0:01:11]} 28... Rxd1 {[%clk 0:00:33.5]} 29.
Qxd1 {[%clk 0:01:10.9]} 29... Qe7 {[%clk 0:00:18.9]} 30. e5 {[%clk 0:00:52.3]}
30... Qc7 {[%clk 0:00:12.2]} 31. Qxa4 {[%clk 0:00:42.2]} 31... Be4 {[%clk
0:00:10.6]} 32. Qa8 {[%clk 0:00:33.1]} 32... Bd5 {[%clk 0:00:08.3]} 33. Ba5
{[%clk 0:00:13.3]} 33... b6 {[%clk 0:00:07.5]} 34. Bc3 {[%clk 0:00:12.9]} 34...
g6 {[%clk 0:00:07.9]} 35. Ne3 {[%clk 0:00:12.2]} 35... Bf3 {[%clk 0:00:07.5]}
36. Bg2 {[%clk 0:00:12.1]} 36... Bxg2 {[%clk 0:00:07.2]} 37. Kxg2 {[%clk
0:00:12.6]} 37... Kg7 {[%clk 0:00:07]} 38. Qa6 {[%clk 0:00:11.6]} 38... Ne7
{[%clk 0:00:05.5]} 39. Bb4 {[%clk 0:00:09.5]} 39... c5 {[%clk 0:00:03]} 40. Bc3
{[%clk 0:00:09.5]} 40... Nc6 {[%clk 0:00:02.8]} 41. Nc4 {[%clk 0:00:09.6]} 41...
Nd4 {[%clk 0:00:01.6]} 42. Qa8 {[%clk 0:00:05.8]} 42... Qe7 {[%clk 0:00:01.5]}
43. Qe4 {[%clk 0:00:05.2]} 43... Qc7 {[%clk 0:00:01.3]} 44. Bxd4 {[%clk
0:00:05]} 44... cxd4 {[%clk 0:00:01.3]} 45. Qxd4 {[%clk 0:00:05.9]} 45... b5
{[%clk 0:00:02]} 46. Nd2 {[%clk 0:00:05.1]} 46... Bc5 {[%clk 0:00:02.3]} 47. Qe4
{[%clk 0:00:05.1]} 47... Qb6 {[%clk 0:00:01.5]} 48. Qf3 {[%clk 0:00:04.9]} 48...
b4 {[%clk 0:00:01.6]} 49. axb4 {[%clk 0:00:03.5]} 49... Bxb4 {[%clk 0:00:02.5]}
50. Ne4 {[%clk 0:00:03.8]} 50... Qc7 {[%clk 0:00:02.4]} 51. Qf6+ {[%clk
0:00:03.3]} 51... Kg8 {[%clk 0:00:02.1]} 52. Qf4 {[%clk 0:00:03.4]} 52... Bf8
{[%clk 0:00:01.7]} 53. Nf6+ {[%clk 0:00:03.2]} 53... Kh8 {[%clk 0:00:02.3]} 54.
h5 {[%clk 0:00:03.7]} 54... Bg7 {[%clk 0:00:01.1]} 55. hxg6 {[%clk 0:00:03.7]}
55... fxg6 {[%clk 0:00:02]} 56. Qe4 {[%clk 0:00:01.4]} 56... Bxf6 {[%clk
0:00:01.1]} 57. exf6 {[%clk 0:00:02.3]} 57... Kh7 {[%clk 0:00:01.6]} 58. Qf3
{[%clk 0:00:01.9]} 58... Qf7 {[%clk 0:00:01.6]} 59. Qf4 {[%clk 0:00:02.3]} 59...
h5 {[%clk 0:00:01.3]} 60. g4 {[%clk 0:00:02.1]} 60... Qb7+ {[%clk 0:00:01.2]}
61. f3 {[%clk 0:00:01.8]} 61... Kg8 {[%clk 0:00:01.4]} 62. Qg5 {[%clk
0:00:01.6]} 62... Qxb2+ {[%clk 0:00:01.6]} 63. Kg3 {[%clk 0:00:01.6]} 63... Kf7
{[%clk 0:00:02]} 64. Qh6 {[%clk 0:00:01.9]} 64... Qxf6 {[%clk 0:00:02.1]} 65.
gxh5 {[%clk 0:00:02.3]} 65... gxh5 {[%clk 0:00:02.8]} 66. Qxh5+ {[%clk
0:00:02.6]} 66... Qg6+ {[%clk 0:00:03.5]} 67. Qxg6+ {[%clk 0:00:03]} 67... Kxg6
{[%clk 0:00:04.4]} 68. Kg4 {[%clk 0:00:03.3]} 68... Kf6 {[%clk 0:00:04.8]} 69.
Kf4 {[%clk 0:00:03.7]} 69... e5+ {[%clk 0:00:04.9]} 70. Ke4 {[%clk 0:00:03.7]}
70... Ke6 {[%clk 0:00:05.7]} 71. f4 {[%clk 0:00:04.3]} 71... exf4 {[%clk
0:00:06.6]} 72. Kxf4 {[%clk 0:00:05.2]} 1/2-1/2

[Event "Late-Titled-Tuesday-Blitz-April-30-2024"]
[Site "Chess.com"]
[Date "2024.04.30"]
[Round "1"]
[White "King_Deded4d5"]
[Black "SchmakAttack"]
[Result "0-1"]
[WhiteElo "2454"]
[BlackElo "2818"]
[TimeControl "180+1"]
[EndTime "14:08:56 PDT"]
[Termination "SchmakAttack won by resignation"]

1. d4 {[%clk 0:03:00.9]} 1... d5 {[%clk 0:02:58.8]} 2. Nf3 {[%clk 0:03:01.3]}
2... Nf6 {[%clk 0:02:57.3]} 3. c3 {[%clk 0:03:01.4]} 3... e6 {[%clk 0:02:54.9]}
4. Bf4 {[%clk 0:03:01]} 4... c5 {[%clk 0:02:54.4]} 5. e3 {[%clk 0:03:01.4]} 5...
Qb6 {[%clk 0:02:43.2]} 6. Qb3 {[%clk 0:02:59.2]} 6... c4 {[%clk 0:02:40.5]} 7.
Qc2 {[%clk 0:02:58.9]} 7... Nc6 {[%clk 0:02:37.2]} 8. Nbd2 {[%clk 0:02:55]} 8...
Bd7 {[%clk 0:02:32.1]} 9. e4 {[%clk 0:02:48.1]} 9... Qd8 {[%clk 0:02:26.9]} 10.
e5 {[%clk 0:02:42.6]} 10... Ng8 {[%clk 0:02:26.8]} 11. h4 {[%clk 0:02:41.8]}
11... f6 {[%clk 0:02:11.1]} 12. h5 {[%clk 0:02:36.6]} 12... fxe5 {[%clk
0:02:11]} 13. Nxe5 {[%clk 0:02:36.2]} 13... Nge7 {[%clk 0:01:40.4]} 14. Ndf3
{[%clk 0:02:23.8]} 14... Nxe5 {[%clk 0:01:38.7]} 15. Nxe5 {[%clk 0:02:22.8]}
15... Nc6 {[%clk 0:01:38.9]} 16. O-O-O {[%clk 0:01:50.5]} 16... Qf6 {[%clk
0:01:33.6]} 17. g3 {[%clk 0:01:50.4]} 17... Nxe5 {[%clk 0:01:22.1]} 18. Bxe5
{[%clk 0:01:50.2]} 18... Qf7 {[%clk 0:01:22.5]} 19. h6 {[%clk 0:01:40.9]} 19...
O-O-O {[%clk 0:00:59.5]} 20. hxg7 {[%clk 0:01:39.9]} 20... Bxg7 {[%clk
0:01:00.4]} 21. Rxh7 {[%clk 0:01:40.1]} 21... Bh6+ {[%clk 0:00:54.7]} 22. Rxh6
{[%clk 0:01:37.3]} 22... Rxh6 {[%clk 0:00:55.6]} 23. Bf4 {[%clk 0:01:16.8]}
23... Rf6 {[%clk 0:00:55.4]} 24. Qe2 {[%clk 0:01:06.6]} 24... Rxf4 {[%clk
0:00:52.1]} 25. gxf4 {[%clk 0:01:06.6]} 25... Qxf4+ {[%clk 0:00:53]} 26. Qe3
{[%clk 0:01:07.5]} 26... Rf8 {[%clk 0:00:52.1]} 27. Qxf4 {[%clk 0:01:05.8]}
27... Rxf4 {[%clk 0:00:53]} 28. Rd2 {[%clk 0:01:06.4]} 28... Kc7 {[%clk
0:00:53.6]} 29. Re2 {[%clk 0:00:59.4]} 29... Kd6 {[%clk 0:00:53.9]} 30. Kd2
{[%clk 0:00:57.9]} 30... Rh4 {[%clk 0:00:43.4]} 31. Re5 {[%clk 0:00:54.6]} 31...
b5 {[%clk 0:00:33.7]} 32. a3 {[%clk 0:00:54.6]} 32... a5 {[%clk 0:00:32.9]} 33.
Ke3 {[%clk 0:00:48.6]} 33... Rh1 {[%clk 0:00:32.8]} 34. Ke2 {[%clk 0:00:47.1]}
34... Be8 {[%clk 0:00:32.6]} 35. f3 {[%clk 0:00:38.8]} 35... Bg6 {[%clk
0:00:30.2]} 36. Kf2 {[%clk 0:00:36.7]} 36... Bd3 {[%clk 0:00:17.9]} 37. Bxd3
{[%clk 0:00:25.1]} 37... cxd3 {[%clk 0:00:18.8]} 38. Ke3 {[%clk 0:00:26]} 38...
Rb1 {[%clk 0:00:14.9]} 39. Kxd3 {[%clk 0:00:25.4]} 39... Rxb2 {[%clk 0:00:14.9]}
40. Re1 {[%clk 0:00:15.2]} 40... Rf2 {[%clk 0:00:15.2]} 41. Ke3 {[%clk
0:00:14.6]} 41... Ra2 {[%clk 0:00:15]} 42. Rb1 {[%clk 0:00:13]} 42... Kc6 {[%clk
0:00:15.6]} 43. Kd3 {[%clk 0:00:05.3]} 43... Rxa3 {[%clk 0:00:15.6]} 44. Re1
{[%clk 0:00:06.2]} 44... Kd6 {[%clk 0:00:15.4]} 45. Kc2 {[%clk 0:00:05.7]} 45...
b4 {[%clk 0:00:07.5]} 46. cxb4 {[%clk 0:00:05.7]} 46... axb4 {[%clk 0:00:08.4]}
47. Rb1 {[%clk 0:00:06]} 47... Rc3+ {[%clk 0:00:05.8]} 48. Kd2 {[%clk
0:00:06.2]} 48... Kc6 {[%clk 0:00:06.4]} 49. Rxb4 {[%clk 0:00:06.5]} 49... Rxf3
{[%clk 0:00:05.7]} 50. Rb1 {[%clk 0:00:05.7]} 50... Kd6 {[%clk 0:00:05.3]} 51.
Ke2 {[%clk 0:00:06]} 51... Rh3 {[%clk 0:00:05.5]} 52. Kd2 {[%clk 0:00:06.5]}
52... Ke7 {[%clk 0:00:05.8]} 53. Rf1 {[%clk 0:00:06.4]} 53... Rg3 {[%clk
0:00:06.1]} 54. Ke2 {[%clk 0:00:06.8]} 54... Kd6 {[%clk 0:00:03.9]} 55. Rc1
{[%clk 0:00:06.2]} 55... Rh3 {[%clk 0:00:03.4]} 56. Kd2 {[%clk 0:00:06.8]} 56...
Ra3 {[%clk 0:00:03.9]} 57. Ke2 {[%clk 0:00:07.2]} 57... Ke7 {[%clk 0:00:03.8]}
58. Rf1 {[%clk 0:00:07.2]} 58... Rh3 {[%clk 0:00:04.4]} 59. Kd2 {[%clk
0:00:07.6]} 59... Rh5 {[%clk 0:00:04.4]} 60. Ke3 {[%clk 0:00:07.9]} 60... Rf5
{[%clk 0:00:05]} 61. Ra1 {[%clk 0:00:07.5]} 61... Kf6 {[%clk 0:00:05.3]} 62. Ra8
{[%clk 0:00:08.1]} 62... Rh5 {[%clk 0:00:05.9]} 63. Rf8+ {[%clk 0:00:08.5]}
63... Ke7 {[%clk 0:00:05.8]} 64. Rf1 {[%clk 0:00:08]} 64... Rf5 {[%clk
0:00:05.9]} 65. Rh1 {[%clk 0:00:07.9]} 65... Rg5 {[%clk 0:00:03]} 66. Rh8 {[%clk
0:00:07.1]} 66... Rg3+ {[%clk 0:00:02.4]} 67. Ke2 {[%clk 0:00:07.5]} 67... Kf6
{[%clk 0:00:03]} 68. Kf2 {[%clk 0:00:07]} 68... Rd3 {[%clk 0:00:02.9]} 69. Rh4
{[%clk 0:00:06.6]} 69... Kg5 {[%clk 0:00:03.4]} 70. Rh1 {[%clk 0:00:02.5]} 70...
Rxd4 {[%clk 0:00:03.7]} 71. Re1 {[%clk 0:00:03.2]} 71... Kf5 {[%clk 0:00:03.9]}
72. Ke3 {[%clk 0:00:03.2]} 72... Re4+ {[%clk 0:00:04.2]} 0-1

[Event "Late-Titled-Tuesday-Blitz-April-30-2024"]
[Site "Chess.com"]
[Date "2024.04.30"]
[Round "1"]
[White "SaqoChess_Twitch"]
[Black "FREZZY23"]
[Result "1-0"]
[WhiteElo "2680"]
[BlackElo "2385"]
[TimeControl "180+1"]
[EndTime "14:09:03 PDT"]
[Termination "SaqoChess_Twitch won on time"]

1. d4 {[%clk 0:03:00.9]} 1... Nf6 {[%clk 0:02:57.7]} 2. c4 {[%clk 0:03:01.5]}
2... g6 {[%clk 0:02:56.8]} 3. Nc3 {[%clk 0:03:02.1]} 3... Bg7 {[%clk 0:02:56.3]}
4. Nf3 {[%clk 0:03:02.7]} 4... d6 {[%clk 0:02:56.9]} 5. h3 {[%clk 0:03:03.2]}
5... O-O {[%clk 0:02:57.5]} 6. Bf4 {[%clk 0:03:03.8]} 6... Nc6 {[%clk 0:02:57]}
7. e3 {[%clk 0:03:04.4]} 7... a6 {[%clk 0:02:56.4]} 8. Be2 {[%clk 0:03:04.5]}
8... Qe8 {[%clk 0:02:56.3]} 9. O-O {[%clk 0:03:05.1]} 9... e5 {[%clk 0:02:56.7]}
10. dxe5 {[%clk 0:03:06]} 10... dxe5 {[%clk 0:02:57.2]} 11. Bh2 {[%clk
0:03:06.8]} 11... Bf5 {[%clk 0:02:55.1]} 12. Nd5 {[%clk 0:03:03.7]} 12... Rd8
{[%clk 0:02:50.6]} 13. Nxf6+ {[%clk 0:02:51.2]} 13... Bxf6 {[%clk 0:02:50]} 14.
Qb3 {[%clk 0:02:51.6]} 14... e4 {[%clk 0:02:47]} 15. Nd4 {[%clk 0:02:48.6]}
15... Bxd4 {[%clk 0:02:27.6]} 16. exd4 {[%clk 0:02:42.5]} 16... Nxd4 {[%clk
0:02:26]} 17. Qe3 {[%clk 0:02:35.2]} 17... Nc2 {[%clk 0:02:25.2]} 18. Qc3 {[%clk
0:02:30.5]} 18... Nxa1 {[%clk 0:02:24]} 19. Bxc7 {[%clk 0:02:29.6]} 19... Rd7
{[%clk 0:02:06.1]} 20. Bf4 {[%clk 0:02:29.5]} 20... f6 {[%clk 0:02:02.6]} 21.
Rxa1 {[%clk 0:02:28.7]} 21... Qc8 {[%clk 0:01:56.4]} 22. c5 {[%clk 0:02:28]}
22... Qc6 {[%clk 0:01:48]} 23. Bd6 {[%clk 0:02:26.6]} 23... Rff7 {[%clk
0:01:47.9]} 24. Bc4 {[%clk 0:02:26]} 24... Kg7 {[%clk 0:01:44.6]} 25. Bxf7
{[%clk 0:02:25.1]} 25... Kxf7 {[%clk 0:01:44.1]} 26. Rd1 {[%clk 0:02:20.2]}
26... Be6 {[%clk 0:01:43.3]} 27. a3 {[%clk 0:02:19.9]} 27... b6 {[%clk
0:01:42.7]} 28. b4 {[%clk 0:02:15.5]} 28... bxc5 {[%clk 0:01:37.8]} 29. bxc5
{[%clk 0:02:15.6]} 29... Rb7 {[%clk 0:01:36.7]} 30. Kh2 {[%clk 0:02:12.4]} 30...
Rb3 {[%clk 0:01:35.7]} 31. Qa5 {[%clk 0:02:11]} 31... Rb7 {[%clk 0:01:23.8]} 32.
Bg3 {[%clk 0:02:10.4]} 32... Rd7 {[%clk 0:01:20.2]} 33. Rd6 {[%clk 0:02:08.1]}
33... Rxd6 {[%clk 0:01:15.7]} 34. cxd6 {[%clk 0:02:09]} 34... Bd7 {[%clk
0:01:13.4]} 35. Qd8 {[%clk 0:02:02.8]} 35... h5 {[%clk 0:01:09.1]} 36. Qe7+
{[%clk 0:02:02.5]} 36... Kg8 {[%clk 0:01:08.5]} 37. Qxf6 {[%clk 0:02:03.1]}
37... Be8 {[%clk 0:01:07.4]} 38. Be5 {[%clk 0:02:02.6]} 38... Qd7 {[%clk
0:01:05.1]} 39. a4 {[%clk 0:01:37.4]} 39... a5 {[%clk 0:01:04.1]} 40. Bc3 {[%clk
0:01:36.8]} 40... h4 {[%clk 0:00:59.8]} 41. Bxa5 {[%clk 0:00:58.3]} 41... Qxa4
{[%clk 0:00:58.1]} 42. Qe6+ {[%clk 0:00:55.6]} 42... Bf7 {[%clk 0:00:57.4]} 43.
Qc8+ {[%clk 0:00:48.7]} 43... Be8 {[%clk 0:00:55.6]} 44. Qe6+ {[%clk 0:00:42.6]}
44... Kh7 {[%clk 0:00:15.4]} 45. Qe7+ {[%clk 0:00:36]} 45... Kg8 {[%clk
0:00:15.2]} 46. Bc3 {[%clk 0:00:36.2]} 46... Qd7 {[%clk 0:00:15]} 47. Qe5 {[%clk
0:00:34.2]} 47... Kf8 {[%clk 0:00:08.3]} 48. Qh8+ {[%clk 0:00:28.4]} 48... Kf7
{[%clk 0:00:08.5]} 49. Qg7+ {[%clk 0:00:27.5]} 49... Ke6 {[%clk 0:00:08.8]} 50.
Qf6+ {[%clk 0:00:28]} 50... Kd5 {[%clk 0:00:09.2]} 51. Qe5+ {[%clk 0:00:28.5]}
51... Kc6 {[%clk 0:00:08.5]} 52. Qxe4+ {[%clk 0:00:28.1]} 52... Kxd6 {[%clk
0:00:09]} 53. Be5+ {[%clk 0:00:24.2]} 53... Kc5 {[%clk 0:00:07.7]} 54. Qxh4
{[%clk 0:00:21.5]} 54... Qd5 {[%clk 0:00:07.3]} 55. Qg3 {[%clk 0:00:20.6]} 55...
Bd7 {[%clk 0:00:06.6]} 56. Bf4 {[%clk 0:00:19.9]} 56... Bf5 {[%clk 0:00:06.2]}
57. Be3+ {[%clk 0:00:20.2]} 57... Kc6 {[%clk 0:00:06.3]} 58. Bf4 {[%clk
0:00:18.9]} 58... Qe4 {[%clk 0:00:06.3]} 59. Bb8 {[%clk 0:00:16.7]} 59... Qe7
{[%clk 0:00:04.5]} 60. f3 {[%clk 0:00:16.9]} 60... Qb7 {[%clk 0:00:04.3]} 61.
Qd6+ {[%clk 0:00:15.3]} 61... Kb5 {[%clk 0:00:04.6]} 62. h4 {[%clk 0:00:13.2]}
62... Qb6 {[%clk 0:00:02.9]} 63. Qd5+ {[%clk 0:00:09]} 63... Qc5 {[%clk
0:00:02.9]} 64. Qb3+ {[%clk 0:00:08.8]} 64... Kc6 {[%clk 0:00:03]} 65. Bg3
{[%clk 0:00:07.8]} 65... Qd5 {[%clk 0:00:03.2]} 66. Qa4+ {[%clk 0:00:07.9]}
66... Kb7 {[%clk 0:00:01.7]} 67. Qb4+ {[%clk 0:00:06.6]} 67... Kc8 {[%clk
0:00:01.4]} 68. Qb8+ {[%clk 0:00:06.7]} 68... Kd7 {[%clk 0:00:02.3]} 69. Qc7+
{[%clk 0:00:06.7]} 69... Ke8 {[%clk 0:00:03]} 70. Qg7 {[%clk 0:00:06.6]} 70...
Qf7 {[%clk 0:00:03.5]} 71. Qe5+ {[%clk 0:00:06.7]} 71... Qe7 {[%clk 0:00:03.8]}
72. Qf4 {[%clk 0:00:07.4]} 72... Kd7 {[%clk 0:00:04.2]} 73. h5 {[%clk
0:00:07.9]} 73... Qe6 {[%clk 0:00:03.9]} 74. h6 {[%clk 0:00:08.3]} 74... Qg8
{[%clk 0:00:03.5]} 75. Qc7+ {[%clk 0:00:08.3]} 75... Ke6 {[%clk 0:00:03.7]} 76.
Qd6+ {[%clk 0:00:08.3]} 76... Kf7 {[%clk 0:00:03.9]} 77. Qc7+ {[%clk 0:00:08]}
77... Ke8 {[%clk 0:00:03.7]} 78. h7 {[%clk 0:00:07.9]} 78... Qh8 {[%clk
0:00:03.6]} 79. Be5 {[%clk 0:00:08.4]} 1-0